Cogmind - Beta 12 @@@ ROGUE MODE // 2023.10.29 @ 12:28:06 Player: Finestep Result: Destroyed by G-50 Soldier with Heavy Laser Performance ------------- Evolutions (5) 2500 Regions Visited (17) 3400 Robots Destroyed (235) 1175 Value Destroyed (8271) 8271 Prototype IDs (17) 340 Alien Tech Used (0) 0 Bonus (3878) 3878 TOTAL SCORE: 19564 Bonus ------- High Alert Combat Kills 1020 Follower Combat Kills 2061 Network Hubs Disabled 200 Built Enhanced Grunts 300 A7 Reached Mainframe 300 Met R17 at Cetus 500 Friendly Fire -503 Cogmind --------- Core Integrity 0/1000 Matter 131/300 Energy 100/100 System Corruption 10% Temperature Warm (180) Movement Flying (40) Location -5/Factory Parts ------- > --- POWER (2) -------- (None) > --- PROPULSION (4) --- Nuclear Pulse Array > --- UTILITY (8) ------ Advanced Terrain Scan Processor Advanced Targeting Computer > --- WEAPON (3) ------- CR-A16's Behemoth Slayer > --- INVENTORY (5) ---- Medium Storage Unit Advanced KE Penetrator Peak State ------------ > --- POWER ------------ Quantum Reactor Quantum Reactor > --- PROPULSION ------- Improved Medium Treads Centrium Heavy Treads > --- UTILITY ---------- Advanced Heat Sink Advanced Targeting Computer Improved Medium Armor Plating Centrium Medium Armor Plating Centrium Medium Armor Plating Experimental Thermal Shield Improved Hacking Suite Improved Hacking Suite > --- WEAPON ----------- KE Penetrator Advanced KE Penetrator Advanced KE Penetrator > --- INVENTORY -------- Centrium Heavy Treads Advanced Terrain Scan Processor Missile Launcher CR-A16's Behemoth Slayer [Rating: 115] Favorites ----------- Power Constructs Engine Constructs Power Core Light Fission Core Reactor Quantum Reactor Propulsion Constructs Treads Constructs Leg Titanium Leg Wheel Armored Huge Wheel Flight Unit Nuclear Pulse Array Utility Medium Storage Unit Device Improved Heat Sink Storage Medium Storage Unit Processor Advanced Targeting Computer Hackware Hacking Suite Protection Centrium Medium Armor Plating Weapon Advanced Beam Cannon Energy Gun EM Pulse Gun Energy Cannon Advanced Beam Cannon Ballistic Gun Advanced KE Penetrator Ballistic Cannon Magnetic Acceleration Cannon Launcher Rocket Launcher Slashing Weapon Phasing Sabre Piercing Weapon CR-A16's Pointy Stick Build | -11 -10 -9 -9 -9 -7 -7 -7 -7 -7 -7 -6 -6 -6 -6 -6 -6 -5 ------- Run | Jun Mat Mat Sto Rec Fac Was Fac Low Low Zio Pro Fac Ext Cet Arc Hub Fac Slots Evolved 10 | . . 2 . . 4 . . . . . . 2 . . . . 2 Power 1 | . . . . . 1 . . . . . . . . . . . . Propulsion 2 | . . 1 . . . . . . . . . . . . . . 1 Utility 6 | . . 1 . . 3 . . . . . . 1 . . . . 1 Weapon 1 | . . . . . . . . . . . . 1 . . . . . Parts Attached 162 | 11 10 8 7 4 5 1 13 6 2 8 1 19 27 12 14 2 12 Power 19 | 1 1 1 1 . 2 . 1 . . . . 4 3 3 . . 2 Engine 13 | 1 1 1 1 . 2 . 1 . . . . 2 3 1 . . . Core 3 | . . . . . . . . . . . . 2 . . . . 1 Reactor 3 | . . . . . . . . . . . . . . 2 . . 1 Propulsion 29 | 3 4 4 3 1 . . . . . . . 3 7 1 . . 3 Treads 8 | 1 . . . . . . . . . . . . 4 1 . . 2 Leg 19 | 2 4 4 3 1 . . . . . . . 3 2 . . . . Wheel 1 | . . . . . . . . . . . . . 1 . . . . Hover . | . . . . . . . . . . . . . . . . . . Flight 1 | . . . . . . . . . . . . . . . . . 1 Utility 69 | 3 2 1 1 2 3 . 12 6 . 4 1 5 7 3 12 2 5 Device 37 | 2 . 1 . 1 1 . 9 5 . 3 . 2 3 1 7 2 . Storage 4 | 1 1 . 1 . . . . . . . . . . . . . 1 Processor 8 | . 1 . . . 2 . 1 1 . . 1 1 . . . . 1 Hackware 7 | . . . . . . . 2 . . . . 2 . . 3 . . Protection 13 | . . . . 1 . . . . . 1 . . 4 2 2 . 3 Artifact . | . . . . . . . . . . . . . . . . . . Weapon 45 | 4 3 2 2 1 . 1 . . 2 4 . 7 10 5 2 . 2 Energy Gun 6 | 3 1 . . . . . . . . . . . 1 1 . . . Energy Cannon 11 | . . 2 2 1 . . . . 1 1 . 3 1 . . . . Ballistic Gun 12 | 1 2 . . . . . . . . 2 . 1 1 3 2 . . Ballistic Cannon 4 | . . . . . . . . . . . . 1 3 . . . . Launcher 6 | . . . . . . 1 . . 1 . . 2 . 1 . . 1 Special Weapon . | . . . . . . . . . . . . . . . . . . Impact Weapon . | . . . . . . . . . . . . . . . . . . Slashing Weapon 2 | . . . . . . . . . . . . . 2 . . . . Piercing Weapon 4 | . . . . . . . . . . 1 . . 2 . . . 1 Special Melee Weapon . | . . . . . . . . . . . . . . . . . . Unidentified Prototypes 7 | . . 1 1 . . . . . . . . . . 4 . 1 . Corrupted Parts 11 | . . . . . . . . . . . . 1 5 4 . . 1 System Corruption 40 | . . . . . . . . . . . . 3 22 10 . . 5 Parts Lost 53 | . 1 . . 5 . . 2 . 1 . . 9 13 4 . 2 16 Power 8 | . . . . . . . . . . . . 2 2 1 . . 3 Propulsion 11 | . . . . 2 . . . . . . . 1 5 . . . 3 Utility 19 | . . . . 2 . . 1 . . . . 1 4 2 . 2 7 Weapon 15 | . 1 . . 1 . . 1 . 1 . . 5 2 1 . . 3 Highest Loss Streak 13 | . 1 . . 4 . . 1 . 1 . . 8 8 4 . 1 13 To Critical Strikes 1 | . . . . . . . . . . . . . . 1 . . . Average Slot Usage (%) 80 | . 99 99 100 76 80 63 62 69 63 72 75 74 81 91 91 91 60 Engine 6 | . 14 11 11 11 12 8 2 6 7 7 7 2 6 5 . . . Reactor 1 | . . . . . . . . . . . . . . 6 13 13 6 Treads 4 | . . . . . . . . 5 7 7 7 5 8 18 13 13 6 Leg 9 | . 28 32 33 24 12 . 2 . . . . . 2 . . . . Device 13 | . 2 10 11 9 15 8 21 21 23 23 15 1 5 7 21 11 4 Storage 6 | . 14 11 11 11 7 7 7 7 7 7 7 6 . . . . 1 Processor 8 | . 12 11 11 . 14 15 4 7 7 7 14 20 13 6 6 6 7 Hackware 4 | . . . . . . . 4 1 . . . 11 13 13 12 13 7 Protection 3 | . . . . 1 . . . . . 4 7 4 7 11 4 13 8 Energy Cannon 6 | . . 20 22 14 7 . . . 4 3 . 1 2 6 3 . . Ballistic Gun 6 | . 19 1 . . . . . 11 4 9 15 9 . 6 15 20 10 Ballistic Cannon 2 | . . . . 4 7 7 7 3 . . . 1 6 2 . . . Naked Turns . | . . . . . . . . . . . . . . . . . . Heaviest Build 89 | 13 15 26 27 27 37 37 40 36 35 42 37 49 57 78 78 74 89 Greatest Support 110 | 20 20 51 51 44 31 28 76 76 42 42 42 45 90 110 110 110 110 Greatest Overweight (x) 3 | . . . . 1 2 1 1 . . . . 1 1 . 2 . 3 Average Overweight (x) . | . . . . . . . . . . . . . . . . . . Largest Inventory Capacity 10 | 8 10 10 10 10 10 10 10 10 10 10 10 10 10 5 5 5 10 Average Capacity 8 | 6 9 10 10 10 10 10 10 10 10 10 10 10 5 5 5 5 6 Most Carried 10 | 8 10 10 10 10 10 10 10 10 10 10 10 10 9 5 5 5 6 Average Carried 8 | 5 8 9 9 9 7 9 9 9 9 9 10 9 4 4 5 5 4 Final Capacity 10 | 8 10 10 10 10 10 10 10 10 10 10 10 10 5 5 5 5 5 Final Carried 10 | 8 10 10 10 10 8 10 10 10 10 10 10 9 5 5 5 5 2 Scrap Engine Consumption 89 | . . . . 19 15 . 47 4 2 2 . . . . . . . Constructs Created 5 | . . . . 2 1 . 2 . . . . . . . . . . Constructs Modified 25 | . . . . 3 2 . 15 5 . . . . . . . . . Class Distribution -------------------- 27% | Mutant 22% | Construct 14% | Scavenger-Mutant 10% | Scavenger-Tank 6% | Derelict-Mutant 5% | Commander-Construct 5% | Scavenger-Gunner 4% | Commander-Mutant Dominant Class ---------------- Scavenger-Mutant | -10/Materials Scavenger-Mutant | -9/Materials Mutant | -9/Storage Commander-Construct | -9/Recycling Commander-Mutant | -7/Factory Construct | -7/Waste Construct | -7/Factory Construct | -7/Lower Caves Construct | -7/Lower Caves Mutant | -7/Zion Derelict-Mutant | -6/Proximity Caves Derelict-Mutant | -6/Factory Scavenger-Mutant | -6/Extension Scavenger-Tank | -6/Cetus Scavenger-Gunner | -6/Archives Scavenger-Tank | -6/Hub_04(d) Scavenger-Tank | -5/Factory Resources | -11 -10 -9 -9 -9 -7 -7 -7 -7 -7 -7 -6 -6 -6 -6 -6 -6 -5 ----------- Run | Jun Mat Mat Sto Rec Fac Was Fac Low Low Zio Pro Fac Ext Cet Arc Hub Fac Matter Collected 4848 | 310 169 90 70 96 107 101 683 157 214 85 141 621 599 349 484 375 197 Remotely 78 | 78 . . . . . . . . . . . . . . . . . Salvage Created 10286 | 109 578 517 1732 433 152 1039 1199 162 289 . 154 730 859 152 415 1130 636 Parts 504 | 9 55 30 87 24 7 2 69 11 8 . 4 32 31 8 27 60 40 Haulers Intercepted 13 | . 2 1 6 . . . 2 . . . . 1 . . . 1 . Recyclers Shooed 5 | . 1 1 2 . . . . . . . . 1 . . . . . Parts Field Recycled . | . . . . . . . . . . . . . . . . . . Retrieved Matter . | . . . . . . . . . . . . . . . . . . Parts Self-Destructed 39 | . . . . . . . . 11 12 . 16 . . . . . . Prevented 5 | . . . . . . . . 3 2 . . . . . . . . Kills | -11 -10 -9 -9 -9 -7 -7 -7 -7 -7 -7 -6 -6 -6 -6 -6 -6 -5 ------- Run | Jun Mat Mat Sto Rec Fac Was Fac Low Low Zio Pro Fac Ext Cet Arc Hub Fac Combat Hostiles Destroyed 159 | . 12 10 26 9 3 4 22 2 7 . 4 17 10 6 1 12 14 Melee 4 | . . . . . . . . . . . . . 4 . . . . Guns 49 | . 11 . . . . . 1 1 3 . 4 7 2 . 1 9 10 Cannons 72 | . . 10 25 8 3 . 20 1 1 . . . 2 2 . . . AOE 28 | . 1 . . . . 4 1 . 3 . . 9 . 4 . 2 4 Classes Destroyed 19 | 2 7 1 . 1 . 1 2 1 1 . 1 1 . . . . 1 Worker 8 | . 1 1 2 . 1 . 1 . . . . . . . . 2 . Builder 7 | . 2 . 1 . . . . . . . . 1 . . . 3 . Tunneler 3 | 2 . . . . . . . . . . . . . . . 1 . Hauler 13 | . 2 1 6 . . . 2 . . . . 1 . . . 1 . Recycler 10 | 1 . . 4 1 . . 1 . . . . . 2 . . 1 . Minesweeper 2 | . . . . . . . . 2 . . . . . . . . . Operator 18 | . 1 . 3 . . . 2 . . . . 1 1 . 9 1 . Watcher 14 | . 3 4 2 . 1 . 2 . . . . 1 . . . 1 . Swarmer 33 | . 6 3 7 2 . . 7 . . . 2 . 1 4 . . 1 Cutter 4 | . . . . . . . . . . . . . . . . . 4 Grunt 64 | . 6 4 11 1 3 . 6 1 5 . 1 14 3 . . 7 2 Brawler 3 | . . . . . . . . . 1 . . . 1 . . . 1 Duelist 2 | . . . . . . . 1 . . . . . . . . . 1 Sentry 27 | . . 3 8 3 . . 6 1 . . . . 3 . 1 1 1 Hunter 9 | . . . . . . . 1 . 1 . . 1 1 . . 3 2 Programmer 8 | . . . . 3 . . 1 . . . . 1 . . . 1 2 Heavy 1 | . . . . . . . . . . . . 1 . . . . . Behemoth 2 | . . . . . . . . . . . 1 . 1 . . . . Compactor 4 | . . . . . . 4 . . . . . . . . . . . Cetus Guard 2 | . . . . . . . . . . . . . . 2 . . . Butcher 1 | . . . . . . . . . . . 1 . . . . . . Best Kill Streak 11 | 2 7 4 9 8 5 3 7 3 4 . 2 7 3 4 3 11 7 Combat Bots Only 9 | . 5 3 9 8 2 3 6 2 4 . 2 6 3 4 1 4 7 Max Kills in Single Turn 7 | 1 2 1 2 1 1 2 3 1 1 . 1 2 1 3 1 7 2 Gunslinging 1 | . . . . . . . . . . . . . . . . . 1 Exploded 3 | . 1 . . . . 2 1 . 1 . . 2 . 3 . 2 2 Melee 1 | . . . . . . . . . . . . . 1 . . . . Uniques/NPCs Destroyed . | . . . . . . . . . . . . . . . . . . Combat | -11 -10 -9 -9 -9 -7 -7 -7 -7 -7 -7 -6 -6 -6 -6 -6 -6 -5 -------- Run | Jun Mat Mat Sto Rec Fac Was Fac Low Low Zio Pro Fac Ext Cet Arc Hub Fac Damage Taken 13506 | . 466 219 723 461 267 . 1243 88 363 . 110 2141 1498 949 22 767 4189 Core 2127 | . 117 32 135 85 24 . 79 16 51 . . 125 336 86 . 35 1006 Absorbed by Shields 1098 | . . . . 3 105 . 140 . . . . . 704 146 . . . Reduced by Siege Mode 252 | . . . . . . . . . . . . . . . . 13 239 Regen/Repaired (Parts) 816 | . . . . . 50 . 674 92 . . . . . . . . . Core Remaining (%) 59 | 100 53 . . 37 . . . . . . 75 . . . . 31 . Volleys Fired 610 | 3 64 31 92 20 18 13 100 14 29 1 15 69 26 24 35 32 24 Largest 3 | 2 2 2 2 2 2 1 2 2 2 2 2 3 3 3 3 3 3 Hottest 330 | 80 80 136 136 136 114 33 106 63 108 113 57 110 196 330 160 103 103 Shots Fired 1120 | 6 127 62 184 36 36 13 113 27 42 2 30 101 56 49 78 96 62 Gun 532 | 6 127 . . . . . 15 18 28 1 30 65 11 12 66 96 57 Cannon 538 | . . 62 184 36 36 . 98 9 7 1 . 13 45 35 12 . . Launcher 50 | . . . . . . 13 . . 7 . . 23 . 2 . . 5 Special . | . . . . . . . . . . . . . . . . . . Kinetic 646 | . 79 . . 2 18 . 111 27 28 1 30 69 32 30 66 96 57 Thermal 354 | . . 62 184 30 18 . 2 . 7 1 . 5 16 17 12 . . Explosive 50 | . . . . . . 13 . . 7 . . 23 . 2 . . 5 Electromagnetic 70 | 6 48 . . 4 . . . . . . . 4 8 . . . . Robot Hit Streak 30 | 5 11 9 12 9 18 2 14 13 14 . 6 16 14 13 7 15 30 Robot Miss Streak 5 | . 3 2 5 2 1 1 5 1 2 . 4 2 2 3 3 2 2 Penetration Max 2 | . . . . . . . 1 1 1 . . 2 . . 1 1 1 Secondary Targets 12 | . 1 . . . . . . . . . 1 2 1 . . 2 5 Max Gunslinging Chain 1 | . 1 . . . . . . . . . 1 1 1 . . 1 1 Shots Hit Robots 732 | 5 74 38 103 25 29 7 72 21 20 . 21 81 55 31 48 48 54 Core Hits 381 | 3 36 16 41 9 9 8 35 8 12 . 12 63 23 18 21 40 27 Critical Kills 15 | . 1 . 2 . 1 . . . . . . 3 1 . 1 2 4 Critical Parts Destroyed 11 | . . . . . . . . . . . . 2 1 1 3 3 1 Critical Strikes 36 | . 2 . 2 . 2 . . . . . . 5 6 2 5 6 6 Meltdown 4 | . . . 2 . 1 . . . . . . . 1 . . . . Destroy 25 | . 1 . . . . . . . . . . 5 1 1 5 6 6 Blast 3 | . . . . . 1 . . . . . . . 1 1 . . . Corrupt 1 | . 1 . . . . . . . . . . . . . . . . Impale 3 | . . . . . . . . . . . . . 3 . . . . Melee Attacks 57 | . . . . . . . . . . 7 . . 37 . . . 13 Impact . | . . . . . . . . . . . . . . . . . . Slashing 13 | . . . . . . . . . . . . . 13 . . . . Piercing 44 | . . . . . . . . . . 7 . . 24 . . . 13 Sneak Attacks 3 | . . . . . . . . . . . . . 3 . . . . Combat Hostiles 1 | . . . . . . . . . . . . . 1 . . . . Follow-up Attacks . | . . . . . . . . . . . . . . . . . . Damage Inflicted 23657 | 69 863 777 2233 555 532 1442 3089 474 664 . 525 3038 1980 1312 1342 2737 2025 Guns 7474 | 69 736 . . . . . 80 314 212 . 525 1171 233 237 1084 1473 1340 Cannons 9424 | . . 777 2233 555 532 . 2829 160 128 . . 270 873 809 258 . . Explosions 5756 | . 127 . . . . 1442 180 . 324 . . 1597 . 266 . 1264 556 Melee 1003 | . . . . . . . . . . . . . 874 . . . 129 Ramming . | . . . . . . . . . . . . . . . . . . Kinetic 11145 | . 390 . . 18 227 . 2885 474 212 . 525 1235 562 720 1084 1473 1340 Thermal 5278 | . 127 777 2233 498 305 . 204 . 128 . . 50 372 326 258 . . Explosive 4185 | . . . . . . 1442 . . 324 . . 1597 . 266 . . 556 Electromagnetic 2046 | 69 346 . . 39 . . . . . . . 156 172 . . 1264 . Impact . | . . . . . . . . . . . . . . . . . . Slashing 374 | . . . . . . . . . . . . . 374 . . . . Piercing 629 | . . . . . . . . . . . . . 500 . . . 129 Highest Corruption 37 | . . . . 3 . 12 18 18 18 18 . 5 27 37 37 . 10 Average Corruption 14 | . . . . 2 . 6 15 18 18 18 . 2 11 33 22 . 9 Corruption Purged 37 | . . . . . . . . . . . . . . . 37 . . Corruption Blocked . | . . . . . . . . . . . . . . . . . . Effects 189 | . . . . 12 . 3 48 10 19 2 . 3 32 23 30 . 7 Message Errors 39 | . . . . 3 . 1 6 2 5 1 . 1 11 2 6 . 1 Matter Fused 55 | . . . . 2 . 1 15 4 8 . . 2 6 6 10 . 1 Heat Flow Errors 16 | . . . . 2 . 1 3 . . . . . 3 5 1 . 1 Energy Discharges 18 | . . . . 1 . . 5 3 3 . . . 1 2 2 . 1 Parts Fused 1 | . . . . . . . . . . . . . . 1 . . . Data Loss (minor) 21 | . . . . 2 . . 6 . 3 . . . 4 3 2 . 1 Data Loss (major) 6 | . . . . 1 . . 3 . . 1 . . . . . . 1 Misfires 5 | . . . . 1 . . . . . . . . 2 . 2 . . Alerts 8 | . . . . . . . 3 . . . . . 4 1 . . . Misdirections 3 | . . . . . . . 1 . . . . . . 1 . . 1 Weapon Failures 17 | . . . . . . . 6 1 . . . . 1 2 7 . . Overload Shots 1 | . . . . . . . . . . . . . . 1 . . . Overflow Damage 371 | . 2 12 38 16 4 . 158 . . . . 68 16 . 12 24 21 Projectiles 247 | . . 12 38 16 4 . 149 . . . . . 16 . 12 . . Explosions 124 | . 2 . . . . . 9 . . . . 68 . . . 24 21 Melee . | . . . . . . . . . . . . . . . . . . Knockbacks 30 | . . . . . 6 . 18 . . . . 2 4 . . . . Impact . | . . . . . . . . . . . . . . . . . . Kinetic 27 | . . . . . 5 . 16 . . . . 2 4 . . . . Secondary 3 | . . . . . 1 . 2 . . . . . . . . . . Self-Inflicted Damage 243 | . 19 . . . . . 57 . . . . 72 . . . 95 . Shots 6 | . 2 . . . . . 1 . . . . 2 . . . 1 . Rammed . | . . . . . . . . . . . . . . . . . . Targets Rammed 1 | . . . 1 . . . . . . . . . . . . . . Kicked 1 | . . . 1 . . . . . . . . . . . . . . Crushed . | . . . . . . . . . . . . . . . . . . Highest Temperature 445 | 3 324 153 204 428 235 101 250 373 82 12 . 256 361 363 82 312 445 Average Temperature 86 | 2 91 45 48 117 96 55 53 192 34 8 . 90 104 139 57 67 203 Received Heat Transfer 2622 | . 150 99 240 109 145 . 260 18 144 . 15 472 442 9 . 204 315 Effects 20 | . . . . 4 . . . . . . . 2 . 3 . 3 8 Shutdowns 2 | . . . . 1 . . . . . . . . . 1 . . . Energy Bleed 4 | . . . . 1 . . . . . . . . . 1 . . 2 Interference 7 | . . . . 1 . . . . . . . 2 . 1 . 3 . Matter Decay 1 | . . . . 1 . . . . . . . . . . . . . Damage (major) 6 | . . . . . . . . . . . . . . . . . 6 Siege Activations 3 | . . . . . . . . . . . . . . . . 2 1 Total Turns 125 | . . . . . . . . . . . . . . . . 63 62 Longest Duration 62 | . . . . . . . . . . . . . . . . 33 62 Robots Corrupted 5 | . . . . 1 . . . . . . . 1 . . . 3 . Combat Hostiles 3 | . . . . 1 . . . . . . . 1 . . . 1 . Parts Fried 20 | . . . . 4 . . . . . . . 1 6 . . 9 . Impact Corruptions 1 | . . . . . . . 1 . . . . . . . . . . Robots Melted 4 | . . . 2 . 1 . . . . . . . 1 . . . . Combat Hostiles 2 | . . . 1 . . . . . . . . . 1 . . . . Parts Melted 19 | . . 1 14 1 2 . . . . . . . 1 . . . . Heat Transferred 9040 | . 200 1406 4033 722 555 . 250 . 250 . . 100 650 474 400 . . Parts Sabotaged . | . . . . . . . . . . . . . . . . . . Parts Stolen . | . . . . . . . . . . . . . . . . . . Parts Stripped . | . . . . . . . . . . . . . . . . . . Power Chain Reactions 2 | . 2 . . . . . . . . . . . . . . . . Missiles Intercepted . | . . . . . . . . . . . . . . . . . . Alert | -11 -10 -9 -9 -9 -7 -7 -7 -7 -7 -7 -6 -6 -6 -6 -6 -6 -5 ------- Run | Jun Mat Mat Sto Rec Fac Was Fac Low Low Zio Pro Fac Ext Cet Arc Hub Fac Peak Influence 1118 | 15 308 554 828 394 328 82 681 . . . . 463 791 895 672 1118 836 Initial 449 | . 9 96 149 189 261 44 57 . . . . 50 226 369 358 168 449 Average 357 | 5 183 291 440 265 279 65 211 . . . . 224 361 601 552 670 638 Maximum Alert Level 4 | . 1 2 3 1 1 . 2 . . . . 2 3 3 2 4 3 Low Security (%) 27 | 100 44 36 7 26 4 100 64 . . . . 50 18 . . 10 . Level 1 34 | . 55 29 29 73 95 . 17 . . . . 36 48 14 2 15 . Level 2 31 | . . 34 58 . . . 18 . . . . 13 27 48 97 28 55 Level 3 6 | . . . 4 . . . . . . . . . 5 36 . 24 44 Level 4 . | . . . . . . . . . . . . . . . . 19 . Level 5 . | . . . . . . . . . . . . . . . . . . High Security . | . . . . . . . . . . . . . . . . . . Max Security . | . . . . . . . . . . . . . . . . . . Squads Dispatched 41 | . 2 3 5 . . . 8 . . . . 7 4 . . 9 3 Investigation 15 | . 1 3 2 . . . 2 . . . . 2 2 . . 2 1 Extermination 3 | . . . . . . . 2 . . . . . . . . 1 . Reinforcement 16 | . 1 . 2 . . . 1 . . . . 5 1 . . 4 2 Assault 3 | . . . 1 . . . . . . . . . 1 . . 1 . Garrison 4 | . . . . . . . 3 . . . . . . . . 1 . Intercept . | . . . . . . . . . . . . . . . . . . Searches Triggered . | . . . . . . . . . . . . . . . . . . Construction Impeded 2 | . . . . . . . . . . . . 1 . . . 1 . Haulers Reinforced 1 | . . . . . . . . . . . . 1 . . . . . Active Scanning Responses . | . . . . . . . . . . . . . . . . . . Cargo Convoy Interrupts . | . . . . . . . . . . . . . . . . . . Stealth | -11 -10 -9 -9 -9 -7 -7 -7 -7 -7 -7 -6 -6 -6 -6 -6 -6 -5 --------- Run | Jun Mat Mat Sto Rec Fac Was Fac Low Low Zio Pro Fac Ext Cet Arc Hub Fac Distress Signals 17 | . . 2 5 . . . 2 . . . . 2 1 2 . 3 . Communications Jammed . | . . . . . . . . . . . . . . . . . . Distress Signals . | . . . . . . . . . . . . . . . . . . Times Spotted 278 | . 19 16 34 12 6 6 32 2 9 . 11 27 34 15 21 12 22 Peak Tracking Total 8 | . 3 4 5 8 4 5 5 1 5 . 3 6 6 5 2 7 7 Tactical Retreats 14 | . 1 1 1 . . . 3 . 1 . 1 2 . . . 2 2 Traps | -11 -10 -9 -9 -9 -7 -7 -7 -7 -7 -7 -6 -6 -6 -6 -6 -6 -5 ------- Run | Jun Mat Mat Sto Rec Fac Was Fac Low Low Zio Pro Fac Ext Cet Arc Hub Fac Traps Triggered 8 | . 1 . . . 1 . 2 1 . . . 1 1 . . . 1 Indirectly . | . . . . . . . . . . . . . . . . . . Trap Hack Attempts . | . . . . . . . . . . . . . . . . . . Triggered . | . . . . . . . . . . . . . . . . . . Disarmed . | . . . . . . . . . . . . . . . . . . Reprogrammed 10 | . . . 10 . . . . . . . . . . . . . . Reused 2 | . . . 2 . . . . . . . . . . . . . . Traps Extracted . | . . . . . . . . . . . . . . . . . . Installed 3 | . . . . . . . . 3 . . . . . . . . . Triggered 7 | . . . 2 . . . . 4 1 . . . . . . . . Most Traps Carried 4 | . . . . . . . . 4 4 4 4 4 4 . . . . Machines | -11 -10 -9 -9 -9 -7 -7 -7 -7 -7 -7 -6 -6 -6 -6 -6 -6 -5 ---------- Run | Jun Mat Mat Sto Rec Fac Was Fac Low Low Zio Pro Fac Ext Cet Arc Hub Fac Machines Disabled 48 | . 1 1 3 1 . . 8 . . . . 8 3 1 4 14 4 Max in Single Turn 6 | . 1 1 1 1 . . 6 . . . . 2 1 1 1 4 2 Network Hub 1 | . . . . . . . . . . . . . . . . 1 . Machines Repaired . | . . . . . . . . . . . . . . . . . . Machines Sabotaged . | . . . . . . . . . . . . . . . . . . Overloaded Fab Kills . | . . . . . . . . . . . . . . . . . . Hacking | -11 -10 -9 -9 -9 -7 -7 -7 -7 -7 -7 -6 -6 -6 -6 -6 -6 -5 --------- Run | Jun Mat Mat Sto Rec Fac Was Fac Low Low Zio Pro Fac Ext Cet Arc Hub Fac Machines Accessed 50 | . 3 4 10 11 1 . 6 1 . 1 . 7 2 . . 3 1 Terminals 32 | . 3 2 8 5 . . 6 . . . . 4 2 . . 2 . Fabricators 4 | . . . . . . . . . . . . 3 . . . . 1 Repair Stations 1 | . . . . . 1 . . . . . . . . . . . . Recycling Units 10 | . . 2 2 6 . . . . . . . . . . . . . Scanalyzers . | . . . . . . . . . . . . . . . . . . Garrison Access 1 | . . . . . . . . . . . . . . . . 1 . Total Hacks 147 | . 13 7 40 26 1 . 15 1 . 2 . 19 7 . . 8 8 Successful 64 | . 5 4 21 10 . . 9 1 . 2 . 5 1 . . 4 2 Failed 83 | . 8 3 19 16 1 . 6 . . . . 14 6 . . 4 6 Catastrophic 21 | . 2 2 3 4 1 . 3 . . . . 4 1 . . . 1 Database Lockouts . | . . . . . . . . . . . . . . . . . . Manual 60 | . 3 3 25 13 . . 6 . . . . 3 . 1 . 6 . Terminals 101 | . 13 4 35 11 . . 15 . . . . 11 7 . . 5 . Fabricators 16 | . . . . . . . . . . . . 8 . . . . 8 Repair Stations 1 | . . . . . 1 . . . . . . . . . . . . Recycling Units 23 | . . 3 5 15 . . . . . . . . . . . . . Scanalyzers . | . . . . . . . . . . . . . . . . . . Garrison Access 3 | . . . . . . . . . . . . . . . . 3 . Terminal Hacks 30 | . 3 1 12 1 . . 7 1 . 2 . . 1 . . 2 . Part Schematic 3 | . . . . . . . 1 . . 2 . . . . . . . Robot Schematic 1 | . . . . . . . 1 . . . . . . . . . . Prototype ID Bank 3 | . . . 2 1 . . . . . . . . . . . . . Open Door 4 | . . . 2 . . . . 1 . . . . 1 . . . . Level Access Points 1 | . . . . . . . . . . . . . . . . 1 . Branch Access Points 2 | . . 1 . . . . 1 . . . . . . . . . . Alert Level 1 | . . . 1 . . . . . . . . . . . . . . Unreport Threat 3 | . . . 2 . . . 1 . . . . . . . . . . Locate Traps 3 | . 1 . . . . . 2 . . . . . . . . . . Reprogram Traps 2 | . . . 2 . . . . . . . . . . . . . . Hauler Manifests 2 | . 1 . . . . . 1 . . . . . . . . . . Zone Layout 5 | . 1 . 3 . . . . . . . . . . . . 1 . Fabricator Hacks 5 | . . . . . . . . . . . . 3 . . . . 2 Network Status 2 | . . . . . . . . . . . . 1 . . . . 1 Load Schematic 2 | . . . . . . . . . . . . 1 . . . . 1 Build 1 | . . . . . . . . . . . . 1 . . . . . Repair Station Hacks . | . . . . . . . . . . . . . . . . . . Recycling Unit Hacks 7 | . . 1 1 5 . . . . . . . . . . . . . Retrieve Components 7 | . . 1 1 5 . . . . . . . . . . . . . Scanalyzer . | . . . . . . . . . . . . . . . . . . Garrison Access Hacks . | . . . . . . . . . . . . . . . . . . Unauthorized Hacks 22 | . 2 2 8 4 . . 2 . . . . 2 . . . 2 . Terminals 14 | . 2 . 6 . . . 2 . . . . 2 . . . 2 . Track 6 | . 1 . 3 . . . 1 . . . . . . . . 1 . Assimilate 1 | . . . . . . . . . . . . 1 . . . . . Botnet 4 | . . . 3 . . . 1 . . . . . . . . . . Disrupt 1 | . . . . . . . . . . . . 1 . . . . . Operators 1 | . 1 . . . . . . . . . . . . . . . . Sabotage 1 | . . . . . . . . . . . . . . . . 1 . Fabricators . | . . . . . . . . . . . . . . . . . . Repair Stations . | . . . . . . . . . . . . . . . . . . Recycling Units 8 | . . 2 2 4 . . . . . . . . . . . . . Tunnel 8 | . . 2 2 4 . . . . . . . . . . . . . Scanalyzers . | . . . . . . . . . . . . . . . . . . Garrison Access . | . . . . . . . . . . . . . . . . . . Data Cores Recovered 2 | . . . 1 . . . . . . . . 1 . . . . . Used 2 | . . . 1 . . . . . . . . 1 . . . . . Hacking Detections 41 | . 3 2 9 8 1 . 6 . . . . 7 2 . . 2 1 Full Trace Events 10 | . 1 2 . . . . 2 . . . . 2 1 . . 1 1 Feedback Events 2 | . . . . . . . 1 . . . . . . . . 1 . Corruption 1 | . . . . . . . 1 . . . . . . . . . . Hackware Fried 1 | . . . . . . . . . . . . . . . . 1 . Feedback Blocked . | . . . . . . . . . . . . . . . . . . Robot Schematics Acquired 5 | . . . . . . . 1 . . 4 . . . . . . . Robots Built 2 | . . . . . . . . . . . . 2 . . . . . Authchips . | . . . . . . . . . . . . . . . . . . Time 134 | . . . . . . . . . . . . 134 . . . . . Total Robot Build Rating 8 | . . . . . . . . . . . . 8 . . . . . Part Schematics Acquired 16 | . . . . . . . 1 . . 15 . . . . . . . Parts Built . | . . . . . . . . . . . . . . . . . . Authchips . | . . . . . . . . . . . . . . . . . . Time . | . . . . . . . . . . . . . . . . . . Total Part Build Rating . | . . . . . . . . . . . . . . . . . . Parts Repaired . | . . . . . . . . . . . . . . . . . . Time . | . . . . . . . . . . . . . . . . . . Parts Recycled . | . . . . . . . . . . . . . . . . . . Recycled Matter . | . . . . . . . . . . . . . . . . . . Retrieved Matter . | . . . . . . . . . . . . . . . . . . Retrieved Components 33 | . . 9 10 14 . . . . . . . . . . . . . Parts Scanalyzed . | . . . . . . . . . . . . . . . . . . Part Schematics Acquired . | . . . . . . . . . . . . . . . . . . Parts Damaged . | . . . . . . . . . . . . . . . . . . Bothacking | -11 -10 -9 -9 -9 -7 -7 -7 -7 -7 -7 -6 -6 -6 -6 -6 -6 -5 ------------ Run | Jun Mat Mat Sto Rec Fac Was Fac Low Low Zio Pro Fac Ext Cet Arc Hub Fac Used RIF Installer . | . . . . . . . . . . . . . . . . . . Robots Hacked . | . . . . . . . . . . . . . . . . . . Non-combat . | . . . . . . . . . . . . . . . . . . Combat . | . . . . . . . . . . . . . . . . . . Robot Hacks Applied . | . . . . . . . . . . . . . . . . . . Relay Couplers Released . | . . . . . . . . . . . . . . . . . . Fabnet Peak Effective % . | . . . . . . . . . . . . . . . . . . Robots Rewired 14 | . . . . 6 . . . . . . . . 8 . . . . Allies Hacked . | . . . . . . . . . . . . . . . . . . Hacks Repelled . | . . . . . . . . . . . . . . . . . . Allies | -11 -10 -9 -9 -9 -7 -7 -7 -7 -7 -7 -6 -6 -6 -6 -6 -6 -5 -------- Run | Jun Mat Mat Sto Rec Fac Was Fac Low Low Zio Pro Fac Ext Cet Arc Hub Fac Total Allies 35 | . . . . 6 . . . . . 13 . 2 9 5 . . . Largest Group 13 | . . . . 6 6 1 . . . 13 13 2 6 6 6 5 . Highest-Rated Group 622 | . . . . 119 119 10 . . . 315 315 74 297 622 622 466 . Highest-Rated Ally 159 | . . . . 27 27 10 . . . 39 39 37 159 156 156 96 . Total Orders 2 | . . . . . . . . . . . . . . . 2 . . STAY 1 | . . . . . . . . . . . . . . . 1 . . FOLLOW 1 | . . . . . . . . . . . . . . . 1 . . Ally Attacks 378 | . . . . 6 3 . . . . . 74 19 164 59 14 39 . Total Damage 9763 | . . . . 128 47 . . . . . 1217 442 4468 1525 511 1425 . Kills 64 | . . . . 2 1 . . . . . 8 4 27 11 3 8 . Allies Corrupted . | . . . . . . . . . . . . . . . . . . Allies Melted . | . . . . . . . . . . . . . . . . . . Intel | -11 -10 -9 -9 -9 -7 -7 -7 -7 -7 -7 -6 -6 -6 -6 -6 -6 -5 ------- Run | Jun Mat Mat Sto Rec Fac Was Fac Low Low Zio Pro Fac Ext Cet Arc Hub Fac Robot Analysis Total . | . . . . . . . . . . . . . . . . . . Derelict Logs Recovered 4 | . . . . . . . . . 1 1 2 . . . . . . Drone Launches . | . . . . . . . . . . . . . . . . . . Drone Recoveries . | . . . . . . . . . . . . . . . . . . Decoded 0b10 Intel 20 | . . . . . . . . . . . . 9 11 . . . . Traps 14 | . . . . . . . . . . . . 8 6 . . . . Emergency Access 4 | . . . . . . . . . . . . . 4 . . . . Exits 2 | . . . . . . . . . . . . 1 1 . . . . Exploration | -11 -10 -9 -9 -9 -7 -7 -7 -7 -7 -7 -6 -6 -6 -6 -6 -6 -5 ------------- Run | Jun Mat Mat Sto Rec Fac Was Fac Low Low Zio Pro Fac Ext Cet Arc Hub Fac Turns Passed 10766 | 113 702 408 1219 918 419 126 1160 233 394 1210 467 573 861 389 767 411 396 Spaces Moved 7690 | 64 404 227 688 598 201 91 1174 277 388 1261 460 447 452 177 341 170 270 Core 72 | 5 . . . . . . . . . . . . . . . . 67 Treads 3683 | 7 . . . . . . 14 190 388 1261 460 432 138 177 341 170 105 Legs 2583 | 52 404 227 688 598 170 . 403 . . . . 15 26 . . . . Wheels 326 | . . . . . . . 38 . . . . . 288 . . . . Hover 928 | . . . . . 31 91 719 87 . . . . . . . . . Flight 98 | . . . . . . . . . . . . . . . . . 98 Fastest Speed 40 | 50 120 120 126 123 131 102 46 46 73 73 73 73 100 160 160 160 40 Average Speed 100 | 118 120 124 127 130 166 106 65 52 73 73 73 76 128 160 167 160 94 Slowest Speed 320 | 160 120 130 130 200 270 177 157 73 73 73 73 123 240 160 320 160 200 Overloaded Moves . | . . . . . . . . . . . . . . . . . . Propulsion Burnouts . | . . . . . . . . . . . . . . . . . . Robots Hopped . | . . . . . . . . . . . . . . . . . . Cave-ins Triggered . | . . . . . . . . . . . . . . . . . . Exploration Rate (%) 50 | 5 75 31 89 95 6 74 29 47 50 86 54 14 57 66 98 26 10 Regions Visited 17 Branch Regions 10 Pre-discovered Areas 12 | . . 2 2 4 . . . . . 4 . . . . . . . Known Exits Taken 4 | . . 1 . . . . 1 . . . . 1 . . . 1 . Unknown Exits Taken 11 | 1 1 . 1 1 . . . 1 1 1 1 . 1 1 1 . . Scrap Searched 7 | . . . . . . . . . 2 4 1 . . . . . . Spaces Dug 31 | . . . . . . 11 . . 9 . . . 2 . . 8 1 Terrain Destroyed 612 | . 3 . . . . 72 71 . 62 . . 64 9 37 23 199 72 Melee . | . . . . . . . . . . . . . . . . . . Projectile 136 | . . . . . . . 41 . 13 . . 1 9 7 23 29 13 AOE 476 | . 3 . . . . 72 30 . 49 . . 63 . 30 . 170 59 Terrain Rammed . | . . . . . . . . . . . . . . . . . . Walls Destroyed . | . . . . . . . . . . . . . . . . . . Machines Disabled . | . . . . . . . . . . . . . . . . . . Actions | -11 -10 -9 -9 -9 -7 -7 -7 -7 -7 -7 -6 -6 -6 -6 -6 -6 -5 --------- Run | Jun Mat Mat Sto Rec Fac Was Fac Low Low Zio Pro Fac Ext Cet Arc Hub Fac Total 9615 | 92 516 301 852 700 253 108 1448 334 457 1535 560 575 608 237 463 236 340 Wait 813 | 2 15 7 45 24 20 1 140 32 36 244 84 28 5 15 65 33 17 Move 7674 | 63 403 226 687 597 201 90 1173 276 387 1260 459 446 451 176 340 169 270 Hop . | . . . . . . . . . . . . . . . . . . Pick Up 65 | 8 9 12 7 2 3 . 7 1 1 5 . 5 3 1 . . 1 Fast Attach 91 | 10 3 1 2 2 . . 6 1 . 6 1 9 20 9 12 2 7 Attach 44 | 1 1 3 1 2 5 1 7 1 2 1 . 9 4 1 . . 5 Detach 37 | 2 1 2 . 1 3 3 6 2 2 1 . 5 4 2 1 . 2 Swap 27 | . 6 4 4 . . . . 4 . 1 . 1 3 2 2 . . Drop 92 | 3 14 15 13 3 3 . 9 . . 9 1 3 3 7 8 . 1 Fire 610 | 3 64 31 92 20 18 13 100 14 29 1 15 69 26 24 35 32 24 Melee 57 | . . . . . . . . . . 7 . . 37 . . . 13 Ram . | . . . . . . . . . . . . . . . . . . Kick 1 | . . . 1 . . . . . . . . . . . . . . Crush . | . . . . . . . . . . . . . . . . . . Escape Stasis . | . . . . . . . . . . . . . . . . . . Rewire 101 | . . . . 49 . . . . . . . . 52 . . . . Trap 3 | . . . . . . . . 3 . . . . . . . . . Miscellaneous . | . . . . . . . . . . . . . . . . . . Route ------- -11/Junkyard -10/Materials (discovered 4 exits: *Mat x2 / [*Min x2]) -9/Materials (discovered 4 exits: [*Mat] / *Min / *Sto x2) -9/Storage (discovered 2 exits: [*Mat] / *Rec) -9/Recycling -7/Factory -7/Waste -7/Factory (discovered 2 exits: *Low x2) -7/Lower Caves -7/Lower Caves -7/Zion -6/Proximity Caves -6/Factory -6/Extension (discovered 3 exits: *Fac x2 / *Cet) -6/Cetus (discovered 2 exits: *Fac / [*Arc]) -6/Archives (discovered 3 exits: *Fac / *Hub x2) -6/Hub_04(d) (discovered 4 exits: *Fac x4) -5/Factory (discovered 1 exit: Upp) History --------- Turn | Location | Event 10 | -11/Junkyard | Discovered new exit (range 14) 114 | -11/Junkyard | Entered Materials 201 | -10/Materials | Discovered new exit (range 14) 318 | -10/Materials | Build established: Mutant 454 | -10/Materials | Discovered new exit (range 8) 455 | -10/Materials | Discovered new exit (range 7) 672 | -10/Materials | Discovered new exit (range 10) 716 | -10/Materials | Build established: Scavenger-Mutant 816 | -10/Materials | Entered another Materials area 816 | -9/Materials | Evolved 2 slots: Propulsion x1, Utility x1 995 | -9/Materials | Discovered new exit (range 12) 1011 | -9/Materials | Identified exit to Mines 1011 | -9/Materials | Identified exit to Storage 1148 | -9/Materials | Discovered new exit (range 16) 1224 | -9/Materials | Entered Storage 1326 | -9/Storage | Build established: Mutant 2072 | -9/Storage | Destroyed 9 combat bots 2104 | -9/Storage | Discovered new exit (range 16) 2341 | -9/Storage | Discovered new exit (range 15) 2424 | -9/Storage | First assault squad dispatched 2440 | -9/Storage | Used back door to open Recycling access 2443 | -9/Storage | Entered Recycling 2452 | -9/Recycling | Core integrity fell below 50% 2505 | -9/Recycling | Destroyed 8 combat bots 2512 | -9/Recycling | Lost 4 parts (1n2u1w) 2578 | -9/Recycling | Found Scrap Engine 3054 | -9/Recycling | Build established: Commander-Construct 3335 | -9/Recycling | Discovered new exit (range 12) 3361 | -9/Recycling | Entered Factory 3361 | -7/Factory | Accompanied by 6 allies 3361 | -7/Factory | Evolved 4 slots: Power x1, Utility x3 3780 | -7/Factory | Sucked down chute 3780 | -7/Factory | Entered Waste 3792 | -7/Waste | Spotted C-40 Crusher 3795 | -7/Waste | 1 allies followed down the chute 3795 | -7/Waste | EMP discharged 3802 | -7/Waste | Spotted C-40 Crusher 3806 | -7/Waste | Destroyed C-40 Crusher 3829 | -7/Waste | Spotted C-40 Crusher 3833 | -7/Waste | Spotted C-40 Crusher 3836 | -7/Waste | Spotted C-40 Crusher 3843 | -7/Waste | Spotted C-40 Crusher 3869 | -7/Waste | Destroyed C-40 Crusher 3869 | -7/Waste | Destroyed C-40 Crusher 3873 | -7/Waste | Destroyed C-40 Crusher 3895 | -7/Waste | EMP discharged 3895 | -7/Waste | System corruption reached 10% 3897 | -7/Waste | Discovered new exit (range 10) 3906 | -7/Waste | Entered Factory 4018 | -7/Factory | Build established: Construct 4393 | -7/Factory | Identified exit to Lower Caves 4763 | -7/Factory | Garrison activated, responded to threat 5066 | -7/Factory | Entered Lower Caves 5146 | -7/Lower Caves | Attracted the attention of an 0b10 checkpoint 5211 | -7/Lower Caves | Encountered a Warlord checkpoint 5291 | -7/Lower Caves | Discovered new exit (range 13) 5299 | -7/Lower Caves | Entered another Lower Caves area 5590 | -7/Lower Caves | Discovered new exit (range 5) 5636 | -7/Lower Caves | Learned Factory emergency access door positions 5693 | -7/Lower Caves | Entered Zion 5729 | -7/Zion | System corruption cleaned by Quarantine Array 5827 | -7/Zion | Discovered new exit (range 8) 5846 | -7/Zion | Found CR-A16's Pointy Stick 6038 | -7/Zion | Learned Factory garrison access intel 6067 | -7/Zion | Gained Derelict followers 6100 | -7/Zion | Learned Factory scanalyzer intel 6134 | -7/Zion | Learned location of Warlord (-4) 6191 | -7/Zion | Gained Derelict followers 6236 | -7/Zion | Gained Derelict followers 6418 | -7/Zion | Build established: Mutant 6903 | -7/Zion | Entered Proximity Caves 6903 | -6/Proximity Caves | Accompanied by 13 allies 7010 | -6/Proximity Caves | Spotted B-75 Beast 7030 | -6/Proximity Caves | Destroyed B-75 Beast 7063 | -6/Proximity Caves | Learned Factory security intel 7201 | -6/Proximity Caves | Build established: Derelict-Mutant 7331 | -6/Proximity Caves | Discovered new exit (range 5) 7370 | -6/Proximity Caves | Entered Factory 7370 | -6/Factory | Accompanied by 2 allies 7370 | -6/Factory | Evolved 2 slots: Utility x1, Weapon x1 7373 | -6/Factory | Loaded intel: 4 scanalyzer locations 7374 | -6/Factory | Loaded intel: 4 garrison access locations 7826 | -6/Factory | Lost 8 parts (2p1n1u4w) 7843 | -6/Factory | Fabricated P-60 Hacker? 7852 | -6/Factory | Identified exit to Extension 7943 | -6/Factory | Entered Extension 7953 | -6/Extension | Disrupted transfer network 8049 | -6/Extension | Rescued A7 8055 | -6/Extension | Lost 8 parts (2p3n2u1w) 8353 | -6/Extension | Build established: Scavenger-Mutant 8461 | -6/Extension | Spotted B-75 Beast 8466 | -6/Extension | Spotted B-75 Beast 8478 | -6/Extension | Core integrity fell below 50% 8483 | -6/Extension | Allies destroyed B-75 Beast 8499 | -6/Extension | Revealed the true nature of CR-A16's Pointy Stick 8502 | -6/Extension | Destroyed B-75 Beast 8522 | -6/Extension | Identified exit to Factory 8525 | -6/Extension | System corruption reached 10% 8547 | -6/Extension | Lost 4 parts (2n1u1w) 8643 | -6/Extension | First assault squad dispatched 8766 | -6/Extension | Discovered exit to Factory (range 16) 8767 | -6/Extension | Discovered new exit (range 15) 8804 | -6/Extension | Entered Cetus 8804 | -6/Cetus | Accompanied by 1 ally (A7) 8809 | -6/Cetus | Acquired a Cetus Manufacturing Module code from A7 8812 | -6/Cetus | Build established: Scavenger-Tank 8826 | -6/Cetus | Spotted Cetus Guard 8826 | -6/Cetus | Spotted Cetus Guard 8828 | -6/Cetus | Spotted Cetus Guard 8833 | -6/Cetus | Allies destroyed Cetus Guard 8833 | -6/Cetus | Spotted Cetus Guard 8840 | -6/Cetus | Destroyed Cetus Guard 8862 | -6/Cetus | Allies destroyed Cetus Guard 8864 | -6/Cetus | Allies destroyed Cetus Guard 8886 | -6/Cetus | System corruption reached 30% 8890 | -6/Cetus | Lost 4 parts (1p2u1w) 8948 | -6/Cetus | Started Cetus Manufacturing Module 8964 | -6/Cetus | Escorted A7 to Cetus Mainframe 8973 | -6/Cetus | Manufactured an Enhanced Grunt 8986 | -6/Cetus | Discovered new exit (range 15) 8998 | -6/Cetus | Manufactured an Enhanced Grunt 9023 | -6/Cetus | Manufactured an Enhanced Grunt 9040 | -6/Cetus | Spotted Cetus Guard 9040 | -6/Cetus | Spotted Cetus Guard 9043 | -6/Cetus | Spotted Cetus Guard 9047 | -6/Cetus | Allies destroyed Cetus Guard 9048 | -6/Cetus | Manufactured an Enhanced Grunt 9051 | -6/Cetus | Spotted Cetus Guard 9059 | -6/Cetus | Allies destroyed Cetus Guard 9068 | -6/Cetus | Allies destroyed Cetus Guard 9068 | -6/Cetus | Destroyed Cetus Guard 9073 | -6/Cetus | Manufactured an Enhanced Grunt 9077 | -6/Cetus | Discovered exit to Factory (range 15) 9090 | -6/Cetus | Met Revision 17 9193 | -6/Cetus | Entered Archives 9193 | -6/Archives | Accompanied by 6 allies (A7) 9199 | -6/Archives | Received a hacking code to weaken MAIN.C 9288 | -6/Archives | Discovered new exit (range 16) 9450 | -6/Archives | Discovered new exit (range 15) 9525 | -6/Archives | Discovered exit to Factory (range 15) 9673 | -6/Archives | Build established: Scavenger-Gunner 9960 | -6/Archives | Entered Hub_04(d) 9960 | -6/Hub_04(d) | Accompanied by 5 allies 9976 | -6/Hub_04(d) | Imp. System Shield fried by hacking feedback 10031 | -6/Hub_04(d) | Found Prototype Device 10031 | -6/Hub_04(d) | Identified Exp. Thermal Shield 10066 | -6/Hub_04(d) | Garrison activated, responded to threat 10187 | -6/Hub_04(d) | Network Hub disabled 10207 | -6/Hub_04(d) | Build established: Scavenger-Tank 10310 | -6/Hub_04(d) | First assault squad dispatched 10371 | -6/Hub_04(d) | Entered Factory 10371 | -5/Factory | Evolved 2 slots: Propulsion x1, Utility x1 10372 | -5/Factory | Identified exit to Upper Caves 10603 | -5/Factory | System corruption reached 10% 10620 | -5/Factory | Destroyed 7 combat bots 10659 | -5/Factory | Lost 13 parts (2p3n5u3w) 10661 | -5/Factory | Core integrity fell below 50% 10704 | -5/Factory | Core integrity fell below 20% 10730 | -5/Factory | Lost 3 parts (1p2u) 10767 | -5/Factory | Destroyed by G-50 Soldier with Heavy Laser Last Messages --------------- 10700_ U-05 Engineer lays Concrete. 10701_ JQHZ WK TL4MUASYBQ#VBYCO:LP4DSN 10701_ U-05 Engineer lays Concrete. 10703_ Penetrated by Slug. 10703_ Knocked back. 10704_ U-05 Engineer lays Concrete. 10708_ Acquired 26 matter. 10709_ Acquired 7 matter. 10709_ M-28 Smith repairs Imp. Heavy Armor Plating. 10713_ Penetrated by Slug. 10716_ Scanalyzer disabled. 10719_ Penetrated by Slug. 10727_ Acquired Nuclear Pulse Array. 10744_ System corrupted: Matter fused (-9). 10744_ K-01 Serf cleans the Subcomponent Replicator. 10745_ T-07 Excavator is excavating. 10751_ K-01 Serf cleans the Subcomponent Replicator. 10753_ T-07 Excavator is excavating. 10755_ ALERT: Security rotation in progress. 10765_ System corrupted: Heat flow error (+240). Map ----- +----------------------------------------------------+ | ?????????????????????????????????????????????????? | | ?????????????????????????????????????????????????? | | ?????????????????????????????????????????????????? | | ?????????????????????????????????????????????????? | | ?????????????????????????????????????????????????? | | ?????????????????????????????????????????????????? | | ?????????????????????????????????????????????????? | | ?????????????????????????????????????????????????? | | ?????????????????????????????????????????????????? | | ?????????????????????????????????????????????????? | | ?????????????????????????????????????????????????? | | ?????????????????????????????????????????????????? | | ?????????????????????????????????????????????????? | | ?????????????????????????????????????????????????? | | ?????????????????????????????????????????????????? | | ?????????????????????????????????????????????????? | | ?????????????????????????????????????????????????? | | ?????????????????????????????????????????????????? | | ?????????????????????????????????????????????????? | | ?????????????????????????????????????????????????? | | ?????????????????????????????????????????????????? | | ?????????????????????????????????????????????????? | | ?????????????????????????????????????????????????? | | ??????????????????????????????#####??????????????? | | ###########??????##### ######## #??????????????? | | @ #??????????????? | | ###### ! #??????????????? | | A g ?????## ##??????????????? | | """ """ ???????# #???????????????? | | """""??"" ???????# #???????????????? | | """"" """ g #????????# #???????????????? | | #????????# #???????????????? | | """ """ #????????# #???????????????? | | """ """"" #????????# #???????????????? | | """ """"" #????????# #???????????????? | | #????????# #???????????????? | | """ """ #????????# #???????????????? | | ##+## """"" """"" #????????# #???????????????? | | ? # """"" """"" #????????# #???????????????? | | ? # ####??####+###?????????????? | | #""" """ # #??#! !#?????????????? | | #"Y """"" ## #### #?????????????? | | #""" """"" + """ #?????????????? | | # # """ #?????????????? | | # # """ #?????????????? | | # # # #?????????????? | | # ######## ####+###?????????????? | | ##### #??????# "" #??? #?????????????? | | ?? #??????# "F"" ## #?????????????? | | ?+ #??????+ """" +?????????????? | +----------------------------------------------------+ Best States ------------- Heat Dissipation 75 Coolant Potential 65 Energy Generation 45 Energy Capacity 600 Matter Stores 300 Matter Capacity 300 Sight Range 16 Robot Scan Range 16 Terrain Scan Range 16 Terrain Scan Density 210 Armor Coverage 1350 Resistance: TH 30 Evasion (%) 65 Targeting Accuracy 8 Target Analysis 5 Recoil Reduction 4 Kinecelleration 30 Offensive Hacking 24 Defensive Hacking 12 Trap Extractor Capacity 4 Item Schematics ----------------- Arm. Huge Wheel | -7/Factory | Hacked Riot Gun | -7/Zion | Free Battle Rifle | -7/Zion | Free Proton Cannon | -7/Zion | Archive Hrd. Heavy Armor Plating | -7/Zion | Archive Hvy. Phase Cannon | -7/Zion | Archive Mak. Axe | -7/Zion | Archive Hpw. Shock Rifle | -7/Zion | Archive Flak Gun | -7/Zion | Archive Imp. Actuator Array | -7/Zion | Archive Mak. Power Source | -7/Zion | Archive Enh. Optical Array | -7/Zion | Archive Mak. Salvage Targeting Computer | -7/Zion | Archive Hvy. Machine Gun | -7/Zion | Archive Imp. System Restoration Module | -7/Zion | Archive Imp. Titanium Leg | -7/Zion | Archive Robot Schematics ------------------ P-60 Hacker | -7/Factory | Hacked G-47 Trooper | -7/Zion | Archive M-28 Smith | -7/Zion | Archive O-24 Administrator | -7/Zion | Archive C-57 Dissector | -7/Zion | Archive Fabricated ------------ P-60 Hacker | x2 | -6/Factory Alien Tech Used ----------------- None Achievements -------------- None Challenges ------------ None Game ------ Seed GravitonModifiedSteel Manual? 0 Play Time 01:43:10 Cumulative 670.0 hours Start 2023.10.28 @ 20:32:24 End 2023.10.29 @ 12:28:06 Sessions 3 Manual Loads 0 Difficulty Rogue Special Mode None Game No. 416 Rogue 416 Adventurer 0 Explorer 0 Win Type - Total 9 Types 6/0/1/1/1/0/0/0/0 Lore% 87 Gallery% 90 Achievement% 74 Wizard Run 0 Options --------- ASCII 0 Keyboard 1 Movement Numpad Keybinds 1 Fullscreen 2 Font 24/Smallcaps Map View 68x50 Tactical HUD 1 Map Filters NONE Filters NONE Steam 1 RUN: 750ae3e8-b4d9-4bd2-aea7-6089781d41a1